Cogmind - Beta 15 @@@ ROGUE MODE // 2025.05.07 @ 13:06:38 Player: gigi283 Result: Destroyed by ER-WBL(R) with Subdweller Machine Gun Performance ------------- Evolutions (0) 0 Regions Visited (3) 600 Robots Destroyed (34) 170 Value Destroyed (519) 519 Prototype IDs (1) 20 Alien Tech Used (0) 0 Bonus (0) 0 TOTAL SCORE: 1309 Bonus ------- None Cogmind --------- Core Integrity 0/250 Matter 256/300 Energy 247/265 System Corruption 0% Temperature Cool (16) Movement Rolling (105) Location -10/Subcaves Parts ------- > --- POWER (1) -------- Improved Ion Engine > --- PROPULSION (2) --- Compact Wheel Subdweller Monowheel > --- UTILITY (2) ------ Large Storage Unit Seismic Detector > --- WEAPON (2) ------- Beam Cannon Barrage Gun > --- INVENTORY (15) --- Ion Engine Light Treads Aluminum Leg Aluminum Leg Flight Unit Flight Unit Improved Terrain Scanner Bomb Drone Bay Improved EM Shotgun Improved EM Shotgun Autogun Light Cannon Flamer Mace Peak State ------------ > --- POWER ------------ Improved Ion Engine > --- PROPULSION ------- Aluminum Leg Subdweller Monowheel > --- UTILITY ---------- Large Storage Unit Seismic Detector > --- WEAPON ----------- Improved EM Shotgun Mace > --- INVENTORY -------- Ion Engine Light Treads Aluminum Leg Compact Wheel Flight Unit Flight Unit Improved Terrain Scanner Bomb Drone Bay Improved EM Shotgun Beam Cannon Autogun Barrage Gun Light Cannon Flamer [Rating: 15] Favorites ----------- Power Ion Engine Engine Ion Engine Propulsion Wheel Leg Aluminum Leg Wheel Wheel Flight Unit Flight Unit Utility Large Storage Unit Device Shield Generator Storage Large Storage Unit Protection Light Armor Plating Weapon Improved EM Shotgun Energy Gun Improved EM Shotgun Energy Cannon Beam Cannon Ballistic Gun Light Assault Rifle Impact Weapon Mace Build | -11 -10 -10 -10 ------- Run | Yrd Mat Min Sub Slots Evolved . | . . . . Power . | . . . . Propulsion . | . . . . Utility . | . . . . Weapon . | . . . . Parts Attached 28 | 6 17 2 3 Power 3 | 1 1 1 . Engine 3 | 1 1 1 . Core . | . . . . Reactor . | . . . . Propulsion 10 | 2 7 . 1 Treads . | . . . . Leg 2 | . 2 . . Wheel 6 | 2 3 . 1 Hover . | . . . . Flight 2 | . 2 . . Utility 7 | 1 4 1 1 Device 2 | . 1 . 1 Storage 3 | 1 2 . . Processor . | . . . . Hackware . | . . . . Protection 2 | . 1 1 . Artifact . | . . . . Weapon 8 | 2 5 . 1 Energy Gun 3 | 1 2 . . Energy Cannon 1 | . 1 . . Ballistic Gun 3 | 1 1 . 1 Ballistic Cannon . | . . . . Launcher . | . . . . Special Weapon . | . . . . Impact Weapon 1 | . 1 . . Slashing Weapon . | . . . . Piercing Weapon . | . . . . Special Melee Weapon . | . . . . Unidentified Prototypes 1 | . 1 . . Parts Lost 6 | . 4 . 2 Power . | . . . . Propulsion 3 | . 2 . 1 Utility 2 | . 1 . 1 Weapon 1 | . 1 . . Highest Loss Streak 2 | . 2 . 2 To Critical Strikes . | . . . . Average Backups 9 | 1 7 12 13 Power . | . 1 1 1 Propulsion 3 | . 1 4 4 Utility 2 | . 2 2 2 Weapon 3 | . 2 4 5 Tool/Special . | . . . . Unused Backups 11 | . 1 2 8 Power 1 | . . . 1 Propulsion 3 | . . 2 1 Utility 2 | . . . 2 Weapon 5 | . 1 . 4 Tool/Special . | . . . . Average Slot Usage (%) 95 | . 93 100 98 Engine 14 | . 14 14 14 Leg 2 | . 2 . 7 Wheel 24 | . 24 28 19 Device 3 | . 4 . 6 Storage 14 | . 14 14 14 Protection 7 | . 3 14 7 Energy Gun 11 | . 9 14 13 Energy Cannon 3 | . 5 . . Ballistic Gun 4 | . 8 . . Impact Weapon 8 | . 4 14 14 Peak Build Rating 15 | 6 11 14 15 Average Rating 10 | 4 8 12 14 On Entrance 7 | . 6 11 14 Naked Turns . | . . . . Heaviest Build 35 | 13 34 35 35 Greatest Support 36 | 26 26 26 36 Greatest Overweight (x) 3 | . 3 1 2 Average Overweight (x) . | . . 1 . Largest Inventory Capacity 15 | 8 15 15 15 Average Capacity 12 | 7 10 15 15 Most Carried 15 | 4 11 14 15 Average Carried 9 | 2 7 12 14 Final Capacity 15 | 8 15 15 15 Final Carried 15 | 4 11 14 15 Class Distribution -------------------- 96% | Mutant 3% | Scavenger-Mutant Dominant Class ---------------- Mutant | -10/Materials Mutant | -10/Mines Mutant | -10/Subcaves Resources | -11 -10 -10 -10 ----------- Run | Yrd Mat Min Sub Matter Collected 572 | 258 226 58 30 Remotely . | . . . . Salvage Created 1004 | 70 658 209 67 Parts 69 | 9 40 12 8 Haulers Intercepted 1 | . 1 . . Recyclers Shooed 2 | . 1 1 . Parts Field Recycled . | . . . . Retrieved Matter . | . . . . Parts Self-Destructed 16 | . . . 16 Prevented 1 | . . . 1 Kills | -11 -10 -10 -10 ------- Run | Yrd Mat Min Sub Combat Hostiles Destroyed 21 | . 13 4 4 Guns 11 | . 5 4 2 Cannons 6 | . 6 . . AOE 4 | . 2 . 2 Classes Destroyed 8 | 1 6 1 . Worker 3 | . 3 . . Tunneler 4 | 3 . 1 . Hauler 1 | . 1 . . Recycler 3 | . 2 1 . Watcher 2 | . 2 . . Swarmer 13 | . 6 3 4 Grunt 7 | . 7 . . Sentry 1 | . . 1 . Best Kill Streak 8 | 3 8 3 4 Combat Bots Only 5 | . 5 3 4 Max Kills in Single Turn 2 | 1 2 1 2 Gunslinging 1 | . 1 . . Exploded 2 | . 1 . 2 Melee . | . . . . Uniques/NPCs Destroyed . | . . . . Combat | -11 -10 -10 -10 -------- Run | Yrd Mat Min Sub Hostile Shots Fired 104 | . 55 15 34 Missed 26 | . 13 3 10 Hits 78 | . 42 12 24 Projectile 78 | . 42 12 24 Critical Strikes 1 | . . . 1 Damage Taken 898 | . 498 145 255 Core 261 | . 137 21 103 Absorbed by Shields 76 | . 76 . . Core Remaining (%) 100 | 100 . . . Volleys Fired 84 | 4 54 12 14 Largest 2 | 2 2 1 2 Hottest 105 | 60 105 45 88 Shots Fired 129 | 8 94 12 15 Gun 98 | 8 64 12 14 Cannon 31 | . 30 . 1 Launcher . | . . . . Special . | . . . . Kinetic 48 | 4 43 . 1 Thermal 31 | . 30 . 1 Explosive . | . . . . Electromagnetic 50 | 4 21 12 13 Robot Hit Streak 19 | 5 6 19 5 Robot Miss Streak 4 | . 4 1 4 Penetration Max . | . . . . Secondary Targets 1 | . 1 . . Max Gunslinging Chain 1 | . 1 . . Shots Hit Robots 79 | 5 50 12 12 Core Hits 46 | 4 29 9 4 Critical Kills . | . . . . Critical Parts Destroyed . | . . . . Critical Strikes . | . . . . Melee Attacks 16 | . 14 . 2 Impact 16 | . 14 . 2 Slashing . | . . . . Piercing . | . . . . Sneak Attacks 1 | . 1 . . Combat Hostiles . | . . . . Follow-up Attacks . | . . . . Damage Inflicted 1450 | 60 946 184 260 Guns 803 | 60 429 184 130 Cannons 283 | . 265 . 18 Explosions 328 | . 216 . 112 Melee 36 | . 36 . . Ramming . | . . . . Kinetic 259 | 9 233 . 17 Thermal 611 | . 481 . 130 Explosive . | . . . . Electromagnetic 544 | 51 196 184 113 Impact 36 | . 36 . . Slashing . | . . . . Piercing . | . . . . Highest Corruption . | . . . . Average Corruption . | . . . . Corruption Purged . | . . . . Corruption Blocked . | . . . . Overload Shots . | . . . . Overflow Damage 50 | . 40 . 10 Projectiles 6 | . 6 . . Explosions 28 | . 18 . 10 Melee 16 | . 16 . . Knockbacks . | . . . . Impact . | . . . . Kinetic . | . . . . Secondary . | . . . . Self-Inflicted Damage 117 | . 78 . 39 Shots 3 | . 2 . 1 Rammed . | . . . . Targets Rammed . | . . . . Kicked . | . . . . Crushed . | . . . . Highest Temperature 260 | 20 260 58 16 Average Temperature 63 | 15 72 23 10 Received Heat Transfer 194 | . 146 36 12 Siege Activations . | . . . . Martial Activations . | . . . . Shielding Activations . | . . . . Robots Disrupted . | . . . . Combat Hostiles . | . . . . Robots Corrupted . | . . . . Combat Hostiles . | . . . . Parts Fried . | . . . . Impact Corruptions 1 | . 1 . . Robots Melted . | . . . . Combat Hostiles . | . . . . Parts Melted . | . . . . Heat Transferred 992 | . 755 . 237 Parts Sabotaged . | . . . . Parts Stolen . | . . . . Parts Stripped . | . . . . Power Chain Reactions 4 | . 3 . 1 Alert | -11 -10 -10 -10 ------- Run | Yrd Mat Min Sub Maximum Alert Level . | . . . . Low Security (%) 100 | 100 100 100 . Level 1 . | . . . . Level 2 . | . . . . Level 3 . | . . . . Level 4 . | . . . . Level 5 . | . . . . High Security . | . . . . Max Security . | . . . . Peak Influence 179 | 10 179 62 . Initial 36 | . 3 36 . Average 50 | 1 77 10 . Influence Increases 707 | 15 407 100 185 Destroy 0b10 Robot/C 420 | . 260 80 80 Destroy 0b10 Robot/NC 65 | 15 40 10 . Destroy Leader 56 | . 46 10 . Disable Machine 15 | . 15 . . Destroy Structure 16 | . 16 . . Lose Combat Pursuer 135 | . 30 . 105 Influence Decreases 612 | 10 318 148 136 Entered New Map 85 | . 2 58 25 Time Decay 467 | 10 276 90 91 Lost Part 60 | . 40 . 20 Squads Dispatched 1 | . 1 . . Investigation 1 | . 1 . . Extermination . | . . . . Reinforcement . | . . . . Assault . | . . . . Garrison . | . . . . Intercept . | . . . . Searches Triggered . | . . . . Construction Impeded . | . . . . Haulers Reinforced . | . . . . Active Scanning Responses . | . . . . Cargo Convoy Interrupts . | . . . . Stealth | -11 -10 -10 -10 --------- Run | Yrd Mat Min Sub Distress Signals 1 | . 1 . . Communications Jammed . | . . . . Distress Signals . | . . . . Times Spotted 32 | . 18 5 9 Peak Tracking Total 6 | . 4 3 6 Tactical Retreats 4 | . 2 . 2 Traps | -11 -10 -10 -10 ------- Run | Yrd Mat Min Sub Traps Triggered 2 | . 2 . . Indirectly . | . . . . Trap Hack Attempts . | . . . . Triggered . | . . . . Disarmed . | . . . . Reprogrammed . | . . . . Reused . | . . . . Traps Extracted . | . . . . Installed . | . . . . Triggered . | . . . . Machines | -11 -10 -10 -10 ---------- Run | Yrd Mat Min Sub Machines Disabled 1 | . 1 . . Max in Single Turn 1 | . 1 . . Machines Repaired . | . . . . Machines Dismantled . | . . . . Machines Sabotaged . | . . . . Overloaded Fab Kills . | . . . . Hacking | -11 -10 -10 -10 --------- Run | Yrd Mat Min Sub Machines Accessed 3 | . 2 1 . Terminals 2 | . 2 . . Fabricators . | . . . . Repair Stations . | . . . . Recycling Units . | . . . . Scanalyzers . | . . . . Garrison Access . | . . . . Total Hacks 3 | . 2 1 . Successful 1 | . . 1 . Failed 2 | . 2 . . Catastrophic . | . . . . Database Lockouts . | . . . . Manual 2 | . 2 . . Terminals 2 | . 2 . . Fabricators . | . . . . Repair Stations . | . . . . Recycling Units . | . . . . Scanalyzers . | . . . . Garrison Access . | . . . . Terminal Hacks 1 | . . 1 . Open Door 1 | . . 1 . Fabricator Hacks . | . . . . Repair Station Hacks . | . . . . Recycling Unit Hacks . | . . . . Scanalyzer . | . . . . Garrison Access Hacks . | . . . . Unauthorized Hacks . | . . . . Terminals . | . . . . Fabricators . | . . . . Repair Stations . | . . . . Recycling Units . | . . . . Scanalyzers . | . . . . Garrison Access . | . . . . Data Cores Recovered . | . . . . Used . | . . . . Hacking Detections 2 | . 2 . . Full Trace Events . | . . . . Feedback Events . | . . . . Feedback Blocked . | . . . . Robot Schematics Acquired . | . . . . Robots Built . | . . . . Authchips . | . . . . Time . | . . . . Total Robot Build Rating . | . . . . Part Schematics Acquired . | . . . . Parts Built . | . . . . Authchips . | . . . . Time . | . . . . Total Part Build Rating . | . . . . Parts Repaired . | . . . . Time . | . . . . Parts Recycled . | . . . . Recycled Matter . | . . . . Retrieved Matter . | . . . . Retrieved Components . | . . . . Parts Scanalyzed . | . . . . Part Schematics Acquired . | . . . . Parts Damaged . | . . . . Bothacking | -11 -10 -10 -10 ------------ Run | Yrd Mat Min Sub Used RIF Installer . | . . . . Robots Hacked . | . . . . Non-combat . | . . . . Combat . | . . . . Robot Hacks Applied . | . . . . Relay Couplers Released . | . . . . Fabnet Peak Effective % . | . . . . Robots Rewired . | . . . . Allies Hacked . | . . . . Hacks Repelled . | . . . . Allies | -11 -10 -10 -10 -------- Run | Yrd Mat Min Sub Total Allies . | . . . . Largest Group . | . . . . Highest-Rated Group . | . . . . Highest-Rated Ally . | . . . . Total Orders . | . . . . Ally Attacks . | . . . . Total Damage . | . . . . Kills . | . . . . Allies Corrupted . | . . . . Allies Melted . | . . . . Intel | -11 -10 -10 -10 ------- Run | Yrd Mat Min Sub Active Infowar (turns) 105 | . . . 105 Seismic 105 | . . . 105 Robot Analysis Total . | . . . . Derelict Logs Recovered 1 | . . 1 . Drone Launches . | . . . . Drone Recoveries . | . . . . Exploration | -11 -10 -10 -10 ------------- Run | Yrd Mat Min Sub Turns Passed 1793 | 79 953 535 226 Spaces Moved 1343 | 63 658 476 146 Core 11 | 11 . . . Treads . | . . . . Legs 67 | . 37 . 30 Wheels 1264 | 52 620 476 116 Hover . | . . . . Flight 1 | . 1 . . Fastest Speed 50 | 50 80 105 105 Average Speed 101 | 83 96 105 122 Slowest Speed 190 | 90 190 105 190 Overloaded Moves . | . . . . Propulsion Burnouts . | . . . . Robots Hopped . | . . . . Potential Cave-ins 3 | . 3 . . Cave-ins Triggered . | . . . . Exploration Rate (%) 42 | 5 65 90 10 Regions Visited 3 Branch Regions 2 Pre-discovered Areas 1 | . . 1 . Known Exits Taken . | . . . . Unknown Exits Taken 3 | 1 1 1 . Scrap Searched 1 | . . 1 . Spaces Dug 12 | . 12 . . Terrain Destroyed 21 | . 19 . 2 Melee 12 | . 12 . . Projectile . | . . . . AOE 9 | . 7 . 2 Terrain Rammed . | . . . . Walls Destroyed . | . . . . Machines Disabled . | . . . . Actions | -11 -10 -10 -10 --------- Run | Yrd Mat Min Sub Total 1613 | 82 859 500 172 Wait 82 | . 81 1 . Move 1340 | 62 657 475 146 Hop . | . . . . Pick Up 39 | 10 20 6 3 Fast Attach 2 | . 2 . . Attach 13 | 6 5 . 2 Detach . | . . . . Swap 23 | . 16 2 5 Drop 14 | . 10 4 . Fire 84 | 4 54 12 14 Melee 16 | . 14 . 2 Ram . | . . . . Kick . | . . . . Crush . | . . . . Escape Stasis . | . . . . Rewire . | . . . . Trap . | . . . . Miscellaneous . | . . . . Route ------- -11/Scrapyard -10/Materials (discovered 3 exits: [*Mat x2] / *Min) -10/Mines (discovered 3 exits: [*Mat x2] / [*Sub]) -10/Subcaves History --------- Turn | Location | Event 7 | -11/Scrapyard | Discovered new exit (range 16) 80 | -11/Scrapyard | Entered Materials 142 | -10/Materials | Discovered new exit (range 7) 312 | -10/Materials | Build established: Mutant 693 | -10/Materials | Discovered new exit (range 16) 940 | -10/Materials | Discovered new exit (range 15) 1010 | -10/Materials | Core integrity fell below 50% 1033 | -10/Materials | Entered Mines 1067 | -10/Mines | Learned location of Storage (-8) 1348 | -10/Mines | Discovered new exit (range 13) 1353 | -10/Mines | Discovered new exit (range 16) 1379 | -10/Mines | Found the Drone Emporium 1387 | -10/Mines | Found Prototype Device 1560 | -10/Mines | Discovered new exit (range 4) 1568 | -10/Mines | Entered Subcaves 1569 | -10/Subcaves | Approached by a straggling Scientist 1572 | -10/Subcaves | Shifting Twisted Machinery released Flamer 1637 | -10/Subcaves | Shifting Twisted Machinery released Barrage Gun 1667 | -10/Subcaves | Core integrity fell below 20% 1771 | -10/Subcaves | Shifting Twisted Machinery released Sub. Beam Cannon 1772 | -10/Subcaves | Shifting Twisted Machinery released Mak. Leg 1794 | -10/Subcaves | Destroyed by ER-WBL(R) with Subdweller Machine Gun Last Messages --------------- repair. 01690_ Subatomizers dissect the Flight Unit. 01703_ Acquired 17 matter. 01709_ Acquired 13 matter. 01720_ 08-FX2(O) collects matter. 1A-C9M(c): "I think it's somewhere northeast of here" 01724_ 08-FX2(O) collects matter. 01725_ Subatomizers dissect the Flight Unit. 01727_ 08-FX2(O) collects matter. 01731_ Acquired Barrage Gun. 01735_ 08-FX2(O) puts together Flamer. 01738_ Subatomizers dissect the Flight Unit. 01753_ Acquired Sub. Monowheel. Sub. Beam Cannon falls loose from the Twisted Machinery. 1A-C9M(c): "I think it's somewhere northeast of here" Mak. Leg falls loose from the Twisted Machinery. Map ----- +----------------------------------------------------+ | ?????????????????????????????????????????????????? | | ?????????????????????????????????????????????????? | | ?????????????????????????????????????????????????? | | ?????????????????????????????????????????????????? | | ?????????????????????????????????????????????????? | | ?????????????????????????????????????????????????? | | ?????????????????????????????????????????????????? | | ?????????????????????????????????????????????????? | | ?????????????????????????????????????????????????? | | ?????????????????????????????????????????????????? | | ?????????????????????????????????????????????????? | | ?????????????????????????????????????????????????? | | ?????????????????????????????????????????????????? | | ?????????????????????????????????????????????????? | | ?????????????????????????????????????????????????? | | ?????????????????????????????????????????????????? | | ?????????????????????????????????????????????????? | | ?????????????????????????????????????????????????? | | ?????????????????????????????????????????????????? | | ?????????????????????????????????????????????????? | | ???????????????? ??????????????????????????????? | | ???????????????# ?????????????????????????????? | | ????????????????# #????????????????????????????? | | ???????????????## ########????????????????????? | | ???????????????# ##???????????????????? | | ???????????????# @ ##??????????????????? | | ????????????????# ####???????????????? | | ????????????????## ##??????????????? | | ?????????????????## " #??????????????? | | ??????????????????## " #??????????????? | | ???????????????????##="" ## #?????????????? | | ????????????????????# "] ##?# #?????????????? | | ????????????????????# "% ##??? #?????????????? | | ????????????????????# " " #?????##?????????????? | | ????????????????## ##" ""RR##???????????????????? | | ???###??????????# % " "" ##??????????????????? | | ???#""""?????????# "" " ##?????????????????? | | ???#" " ????????## """" " #?????????????????? | | ???#" ???????????"""" " #?????????????????? | | ???# ???????????"""" " "###????????????????? | | #??# ?????????# """"" ""##???????????????? | | #???" ????????#### "#### "" #???????????????? | | #?????# #??????## ### "???## " #???????????????? | | #?????# %####### ###?##### #???????????????? | | #???????# ## ### ## #???????????????? | | #????????## ## " " ##???????????????? | | #???????##"= """ #????????????????? | | #???##### " ## ""##????????????????? | | #??## """ ## " "#?????????????????? | | #### " | "" ### "" #?????????????????? | +----------------------------------------------------+ Best States ------------- Heat Dissipation 25 Energy Generation 12 Energy Capacity 265 Matter Stores 300 Matter Capacity 300 Sight Range 16 Terrain Scan Density 10 Armor Coverage 150 Evasion (%) 50 Item Schematics ----------------- None Robot Schematics ------------------ None Fabricated ------------ Nothing Repaired ---------- Nothing Alien Tech Used ----------------- None Achievements -------------- None Challenges ------------ None Game ------ Seed PlasmaDefenseMatter Manual? 0 Play Time 00:19:53 Cumulative 50.6 hours Start 2025.05.07 @ 12:47:39 End 2025.05.07 @ 13:06:38 Sessions 1 Manual Loads 0 Difficulty Rogue Special Mode None Game No. 73 Rogue 73 Adventurer 0 Explorer 0 Win Type - Total 0 Types 0/0/0/0/0/0/0/0/0/0 Lore% 19 Gallery% 28 Achievement% 28 Wizard Run 0 Options --------- Layout 1 ASCII 0 Keyboard 0 Movement Arrows Keybinds 0 Fullscreen 1 Font 16/SmallcapsGlow Map View 50x40 Zoom Use 0% Tactical HUD 1 Map Filters NONE Filters NONE Steam SD RUN: 00fc6054-6af8-4a40-9a3f-cce6a5d1f3ed